[Event "Late-Titled-Tuesday-Blitz-March-26-2024"]
[Site "Chess.com"]
[Date "2024.03.26"]
[Round "7"]
[White "Zavgorodniy_Sergiy"]
[Black "MetiForce"]
[Result "1-0"]
[WhiteElo "2665"]
[BlackElo "2879"]
[TimeControl "180+1"]
[EndTime "15:19:43 PDT"]
[Termination "Zavgorodniy_Sergiy won by resignation"]

1. d4 {[%clk 0:03:00.9]} 1... Nf6 {[%clk 0:02:59]} 2. c4 {[%clk 0:02:59.7]} 2...
g6 {[%clk 0:02:59.7]} 3. Nc3 {[%clk 0:02:57.6]} 3... d5 {[%clk 0:03:00.2]} 4.
cxd5 {[%clk 0:02:56.1]} 4... Nxd5 {[%clk 0:03:01.1]} 5. e4 {[%clk 0:02:56.4]}
5... Nxc3 {[%clk 0:03:01.1]} 6. bxc3 {[%clk 0:02:57.3]} 6... Bg7 {[%clk
0:03:01.8]} 7. Nf3 {[%clk 0:02:56.8]} 7... c5 {[%clk 0:03:02.2]} 8. Be3 {[%clk
0:02:56.9]} 8... O-O {[%clk 0:03:00.9]} 9. Qd2 {[%clk 0:02:54.8]} 9... Qa5
{[%clk 0:03:00.9]} 10. Rc1 {[%clk 0:02:53.9]} 10... Rd8 {[%clk 0:02:59.8]} 11.
d5 {[%clk 0:02:52.5]} 11... Nc6 {[%clk 0:02:48.5]} 12. Bd3 {[%clk 0:02:51.7]}
12... c4 {[%clk 0:02:38.5]} 13. Bxc4 {[%clk 0:02:48.9]} 13... Bg4 {[%clk
0:02:34.3]} 14. O-O {[%clk 0:02:43.3]} 14... Rac8 {[%clk 0:02:25.9]} 15. Be2
{[%clk 0:02:40.6]} 15... Bxf3 {[%clk 0:02:23.3]} 16. gxf3 {[%clk 0:02:40.6]}
16... Ne5 {[%clk 0:02:23.5]} 17. c4 {[%clk 0:02:37.5]} 17... Qa4 {[%clk
0:02:12.9]} 18. c5 {[%clk 0:02:32]} 18... e6 {[%clk 0:02:12.9]} 19. f4 {[%clk
0:02:27.1]} 19... Nd7 {[%clk 0:02:07.4]} 20. dxe6 {[%clk 0:01:50.4]} 20... fxe6
{[%clk 0:01:52.7]} 21. Bc4 {[%clk 0:01:49.6]} 21... Nxc5 {[%clk 0:01:51.4]} 22.
Qe2 {[%clk 0:01:43]} 22... Kh8 {[%clk 0:01:34.4]} 23. Bxc5 {[%clk 0:01:35]}
23... Rxc5 {[%clk 0:01:35.3]} 24. Bxe6 {[%clk 0:01:34.7]} 24... Rxc1 {[%clk
0:00:52.9]} 25. Rxc1 {[%clk 0:01:35.6]} 25... Qe8 {[%clk 0:00:51.9]} 26. f5
{[%clk 0:01:16.5]} 26... Qe7 {[%clk 0:00:51.9]} 27. Kh1 {[%clk 0:01:12.8]} 27...
Be5 {[%clk 0:00:49.5]} 28. Rc8 {[%clk 0:00:59.4]} 28... Rxc8 {[%clk 0:00:23.4]}
29. Bxc8 {[%clk 0:01:00.3]} 29... Qc7 {[%clk 0:00:20.7]} 30. Be6 {[%clk
0:00:51.8]} 30... Qc1+ {[%clk 0:00:11.9]} 31. Kg2 {[%clk 0:00:51.8]} 31... Qf4
{[%clk 0:00:12.6]} 32. Qf3 {[%clk 0:00:42.5]} 32... Qxh2+ {[%clk 0:00:11.9]} 33.
Kf1 {[%clk 0:00:42.3]} 33... Kg7 {[%clk 0:00:12.8]} 34. fxg6 {[%clk 0:00:40.1]}
34... hxg6 {[%clk 0:00:13.7]} 35. Qf7+ {[%clk 0:00:40.2]} 35... Kh6 {[%clk
0:00:13.7]} 36. Qf8+ {[%clk 0:00:37.9]} 36... Bg7 {[%clk 0:00:13]} 37. Qf3
{[%clk 0:00:37.4]} 37... Qd6 {[%clk 0:00:08.7]} 38. Bd5 {[%clk 0:00:33.4]} 38...
Qa6+ {[%clk 0:00:06.9]} 39. Kg2 {[%clk 0:00:32.6]} 39... Be5 {[%clk 0:00:04.6]}
40. Qh3+ {[%clk 0:00:29.9]} 40... Kg5 {[%clk 0:00:04.9]} 41. Qf3 {[%clk
0:00:26]} 41... Qd6 {[%clk 0:00:04.1]} 42. Qf7 {[%clk 0:00:21.9]} 42... b6
{[%clk 0:00:03.7]} 43. Qxa7 {[%clk 0:00:18.3]} 43... Bd4 {[%clk 0:00:03.3]} 44.
Qf7 {[%clk 0:00:17]} 44... Kh6 {[%clk 0:00:03.8]} 45. Qf3 {[%clk 0:00:15.7]}
45... Qe5 {[%clk 0:00:04.2]} 46. Qh3+ {[%clk 0:00:15.3]} 46... Kg7 {[%clk
0:00:04.7]} 47. Qd7+ {[%clk 0:00:15.4]} 47... Kh6 {[%clk 0:00:05]} 48. Qg4
{[%clk 0:00:14.4]} 48... Bc5 {[%clk 0:00:04.7]} 49. Qg3 {[%clk 0:00:09.4]} 49...
Qf6 {[%clk 0:00:04.6]} 50. f4 {[%clk 0:00:07.9]} 50... Qb2+ {[%clk 0:00:04.3]}
51. Kh3 {[%clk 0:00:08.3]} 51... Qe2 {[%clk 0:00:04.5]} 52. Qg5+ {[%clk
0:00:08.1]} 52... Kg7 {[%clk 0:00:04.4]} 53. Qe5+ {[%clk 0:00:06.6]} 53... Kh7
{[%clk 0:00:04.2]} 54. Qg5 {[%clk 0:00:03.1]} 54... Qf1+ {[%clk 0:00:04.1]} 55.
Qg2 {[%clk 0:00:03.2]} 55... Qd3+ {[%clk 0:00:04]} 56. Qg3 {[%clk 0:00:03.2]}
56... Qf1+ {[%clk 0:00:04.3]} 57. Qg2 {[%clk 0:00:02.9]} 57... Qxf4 {[%clk
0:00:04.3]} 58. Qg3 {[%clk 0:00:03.3]} 58... Qf1+ {[%clk 0:00:04.5]} 59. Qg2
{[%clk 0:00:03.6]} 59... Qf6 {[%clk 0:00:04.9]} 60. Qg4 {[%clk 0:00:03.6]} 60...
Be7 {[%clk 0:00:04.9]} 61. Qg3 {[%clk 0:00:03.5]} 61... Qf1+ {[%clk 0:00:04.1]}
62. Qg2 {[%clk 0:00:04]} 62... Qe1 {[%clk 0:00:03.9]} 63. Kh2 {[%clk 0:00:03]}
63... Qxe4 {[%clk 0:00:02.2]} 64. Qxe4 {[%clk 0:00:02.6]} 64... Bd6+ {[%clk
0:00:02.6]} 65. Kg2 {[%clk 0:00:02.7]} 65... Kh6 {[%clk 0:00:03.1]} 66. Qe6
{[%clk 0:00:03.6]} 66... Bc5 {[%clk 0:00:03.1]} 67. Be4 {[%clk 0:00:04.5]} 67...
Kg5 {[%clk 0:00:03.3]} 68. Qxg6+ {[%clk 0:00:05.4]} 68... Kf4 {[%clk 0:00:04.2]}
69. Qf5+ {[%clk 0:00:06.1]} 69... Ke3 {[%clk 0:00:05.1]} 70. Qd5 {[%clk
0:00:06.8]} 70... Kf4 {[%clk 0:00:05.4]} 71. a3 {[%clk 0:00:07.7]} 1-0

[Event "Late-Titled-Tuesday-Blitz-March-26-2024"]
[Site "Chess.com"]
[Date "2024.03.26"]
[Round "7"]
[White "EsmeraldasAnderson03"]
[Black "Siemba"]
[Result "1/2-1/2"]
[WhiteElo "2605"]
[BlackElo "2459"]
[TimeControl "180+1"]
[EndTime "15:19:45 PDT"]
[Termination "Game drawn by stalemate"]

1. d4 {[%clk 0:03:00.9]} 1... Nf6 {[%clk 0:02:59.7]} 2. c4 {[%clk 0:03:01.6]}
2... g6 {[%clk 0:02:58.9]} 3. Nc3 {[%clk 0:03:02]} 3... Bg7 {[%clk 0:02:58]} 4.
e4 {[%clk 0:03:02.7]} 4... d6 {[%clk 0:02:58.3]} 5. Be2 {[%clk 0:03:03.4]} 5...
O-O {[%clk 0:02:58.3]} 6. Be3 {[%clk 0:03:04]} 6... Nc6 {[%clk 0:02:57.9]} 7. d5
{[%clk 0:03:03.6]} 7... Ne5 {[%clk 0:02:58.3]} 8. h3 {[%clk 0:03:03.9]} 8... c6
{[%clk 0:02:57]} 9. f4 {[%clk 0:03:03.9]} 9... Ned7 {[%clk 0:02:57.6]} 10. Nf3
{[%clk 0:03:04.4]} 10... cxd5 {[%clk 0:02:57.6]} 11. cxd5 {[%clk 0:03:04.4]}
11... b5 {[%clk 0:02:57.9]} 12. a3 {[%clk 0:02:59]} 12... Re8 {[%clk 0:02:18.4]}
13. O-O {[%clk 0:02:55.8]} 13... a6 {[%clk 0:02:16.4]} 14. e5 {[%clk 0:02:44.9]}
14... Nh5 {[%clk 0:02:12.7]} 15. e6 {[%clk 0:02:41.9]} 15... fxe6 {[%clk
0:02:10.1]} 16. dxe6 {[%clk 0:02:42.2]} 16... Nf8 {[%clk 0:02:10.5]} 17. Ng5
{[%clk 0:02:41.5]} 17... Ng3 {[%clk 0:02:08.4]} 18. Rf2 {[%clk 0:02:34]} 18...
Nxe2+ {[%clk 0:01:50.4]} 19. Rxe2 {[%clk 0:02:25.4]} 19... h6 {[%clk 0:01:42.7]}
20. Nf7 {[%clk 0:02:25.2]} 20... Qc7 {[%clk 0:01:39.1]} 21. f5 {[%clk
0:02:25.4]} 21... gxf5 {[%clk 0:01:36.4]} 22. Nxh6+ {[%clk 0:02:11.5]} 22...
Bxh6 {[%clk 0:01:34.1]} 23. Bxh6 {[%clk 0:02:12.4]} 23... Nxe6 {[%clk
0:01:33.7]} 24. Qd5 {[%clk 0:02:10.5]} 24... Qc5+ {[%clk 0:01:33.7]} 25. Kh1
{[%clk 0:02:01.4]} 25... Qxd5 {[%clk 0:01:33]} 26. Nxd5 {[%clk 0:02:02.3]} 26...
Ra7 {[%clk 0:01:17.8]} 27. Rae1 {[%clk 0:02:00.6]} 27... Kf7 {[%clk 0:01:13.2]}
28. Be3 {[%clk 0:01:52.1]} 28... Rb7 {[%clk 0:01:06.5]} 29. Bb6 {[%clk
0:01:36.7]} 29... Nf4 {[%clk 0:00:55]} 30. Nxf4 {[%clk 0:01:30.1]} 30... Rxb6
{[%clk 0:00:55.4]} 31. Rxe7+ {[%clk 0:01:18.8]} 31... Rxe7 {[%clk 0:00:49.4]}
32. Rxe7+ {[%clk 0:01:19.7]} 32... Kxe7 {[%clk 0:00:49.5]} 33. Nd5+ {[%clk
0:01:20.2]} 33... Kd8 {[%clk 0:00:30.3]} 34. Nxb6 {[%clk 0:01:21.1]} 34... Bb7
{[%clk 0:00:30.9]} 35. a4 {[%clk 0:01:21.1]} 35... Kc7 {[%clk 0:00:29.2]} 36. a5
{[%clk 0:01:21.1]} 36... f4 {[%clk 0:00:27.6]} 37. Kg1 {[%clk 0:01:17.5]} 37...
Be4 {[%clk 0:00:27.7]} 38. b4 {[%clk 0:01:15.7]} 38... d5 {[%clk 0:00:22.6]} 39.
Kf2 {[%clk 0:01:11.9]} 39... d4 {[%clk 0:00:23.2]} 40. h4 {[%clk 0:01:12.3]}
40... d3 {[%clk 0:00:20.3]} 41. h5 {[%clk 0:01:12.2]} 41... Bxg2 {[%clk
0:00:20.5]} 42. h6 {[%clk 0:01:09.2]} 42... Be4 {[%clk 0:00:20.1]} 43. Nd5+
{[%clk 0:01:09.7]} 43... Kd6 {[%clk 0:00:16.3]} 44. Nxf4 {[%clk 0:01:10.3]}
44... Ke5 {[%clk 0:00:10.9]} 45. Nh3 {[%clk 0:00:55.4]} 45... Kd4 {[%clk
0:00:09.1]} 46. Ng5 {[%clk 0:00:54.2]} 46... Bg6 {[%clk 0:00:05.2]} 47. Nf3+
{[%clk 0:00:17.8]} 47... Kc3 {[%clk 0:00:05.4]} 48. Ke3 {[%clk 0:00:18.5]} 48...
Kxb4 {[%clk 0:00:04.5]} 49. Ne5 {[%clk 0:00:18.3]} 49... Bh7 {[%clk 0:00:05.1]}
50. Nxd3+ {[%clk 0:00:17.3]} 50... Kxa5 {[%clk 0:00:05.7]} 51. Nf4 {[%clk
0:00:16.1]} 51... Kb4 {[%clk 0:00:06]} 52. Nd5+ {[%clk 0:00:16.3]} 52... Kb3
{[%clk 0:00:06.1]} 53. Nc7 {[%clk 0:00:16.1]} 53... a5 {[%clk 0:00:02.4]} 54.
Nxb5 {[%clk 0:00:16.6]} 54... a4 {[%clk 0:00:03.2]} 55. Nd4+ {[%clk 0:00:17.4]}
55... Kb2 {[%clk 0:00:03.2]} 56. Nb5 {[%clk 0:00:05.9]} 56... Bg6 {[%clk
0:00:03.9]} 57. Kf4 {[%clk 0:00:05.8]} 57... Kb3 {[%clk 0:00:04]} 58. Kg5 {[%clk
0:00:06.3]} 58... Bh7 {[%clk 0:00:04.3]} 59. Nd4+ {[%clk 0:00:07]} 59... Kc4
{[%clk 0:00:04.8]} 60. Nc2 {[%clk 0:00:07]} 60... Kc3 {[%clk 0:00:05.5]} 61. Na3
{[%clk 0:00:06.7]} 61... Kb3 {[%clk 0:00:06]} 62. Nb5 {[%clk 0:00:07.1]} 62...
Kb4 {[%clk 0:00:06.2]} 63. Nd4 {[%clk 0:00:07.2]} 63... Kc4 {[%clk 0:00:06.9]}
64. Ne2 {[%clk 0:00:06.7]} 64... a3 {[%clk 0:00:06.7]} 65. Nc1 {[%clk
0:00:04.9]} 65... Kc3 {[%clk 0:00:07.2]} 66. Kf6 {[%clk 0:00:05.3]} 66... Kb2
{[%clk 0:00:07.9]} 67. Kg7 {[%clk 0:00:06]} 67... Kxc1 {[%clk 0:00:08]} 68. Kxh7
{[%clk 0:00:06.4]} 68... a2 {[%clk 0:00:08.9]} 69. Kg8 {[%clk 0:00:07]} 69...
a1=Q {[%clk 0:00:09.6]} 70. h7 {[%clk 0:00:07.9]} 70... Qa8+ {[%clk 0:00:08.6]}
71. Kg7 {[%clk 0:00:08.1]} 71... Qb7+ {[%clk 0:00:09.1]} 72. Kg8 {[%clk
0:00:08.6]} 72... Qc8+ {[%clk 0:00:09.8]} 73. Kg7 {[%clk 0:00:09]} 73... Qd7+
{[%clk 0:00:10.6]} 74. Kg8 {[%clk 0:00:09.7]} 74... Qe8+ {[%clk 0:00:11.3]} 75.
Kg7 {[%clk 0:00:10.3]} 75... Qe5+ {[%clk 0:00:11.6]} 76. Kg8 {[%clk 0:00:10.7]}
76... Qg5+ {[%clk 0:00:12.4]} 77. Kh8 {[%clk 0:00:09.9]} 77... Qh6 {[%clk
0:00:12.2]} 78. Kg8 {[%clk 0:00:10.2]} 78... Qg6+ {[%clk 0:00:12.7]} 79. Kh8
{[%clk 0:00:10.4]} 79... Qf7 {[%clk 0:00:06.1]} 1/2-1/2

[Event "Late-Titled-Tuesday-Blitz-March-26-2024"]
[Site "Chess.com"]
[Date "2024.03.26"]
[Round "7"]
[White "KaydenTroffChess"]
[Black "sergiochess83"]
[Result "1/2-1/2"]
[WhiteElo "2866"]
[BlackElo "2991"]
[TimeControl "180+1"]
[EndTime "15:19:50 PDT"]
[Termination "Game drawn by repetition"]

1. d4 {[%clk 0:03:00.9]} 1... Nf6 {[%clk 0:02:55.3]} 2. Nf3 {[%clk 0:03:00.8]}
2... d5 {[%clk 0:02:52.4]} 3. Bf4 {[%clk 0:03:00.8]} 3... c5 {[%clk 0:02:51.2]}
4. e3 {[%clk 0:03:01.2]} 4... Nc6 {[%clk 0:02:51.4]} 5. Nc3 {[%clk 0:03:00.9]}
5... Bg4 {[%clk 0:02:42.4]} 6. dxc5 {[%clk 0:02:59.7]} 6... e5 {[%clk
0:02:13.3]} 7. Bg5 {[%clk 0:02:57.4]} 7... d4 {[%clk 0:01:52.3]} 8. exd4 {[%clk
0:02:43.4]} 8... Nxd4 {[%clk 0:01:43.5]} 9. Be2 {[%clk 0:01:33.1]} 9... Bxc5
{[%clk 0:01:35.2]} 10. Nxd4 {[%clk 0:01:28.2]} 10... Qxd4 {[%clk 0:01:25.8]} 11.
Qxd4 {[%clk 0:01:10.7]} 11... Bxd4 {[%clk 0:01:25]} 12. Bxf6 {[%clk 0:01:04]}
12... Bxc3+ {[%clk 0:01:16.4]} 13. bxc3 {[%clk 0:01:01.4]} 13... Bxe2 {[%clk
0:01:17.3]} 14. Bxg7 {[%clk 0:00:57.4]} 14... Rg8 {[%clk 0:01:15.3]} 15. Bxe5
{[%clk 0:00:55.5]} 15... Bc4 {[%clk 0:01:13.8]} 16. O-O-O {[%clk 0:00:42.3]}
16... Bxa2 {[%clk 0:01:06.2]} 17. Rhe1 {[%clk 0:00:34.7]} 17... Be6 {[%clk
0:01:05.1]} 18. g3 {[%clk 0:00:30.2]} 18... Rd8 {[%clk 0:01:01.8]} 19. Bf6
{[%clk 0:00:29.2]} 19... Rxd1+ {[%clk 0:00:51.3]} 20. Rxd1 {[%clk 0:00:29.3]}
20... Bd7 {[%clk 0:00:51.7]} 21. f4 {[%clk 0:00:26.5]} 21... Rg6 {[%clk
0:00:50.8]} 22. Re1+ {[%clk 0:00:24.7]} 22... Kf8 {[%clk 0:00:44.6]} 23. Be7+
{[%clk 0:00:20.9]} 23... Kg8 {[%clk 0:00:41.1]} 24. Bc5 {[%clk 0:00:21.8]} 24...
a5 {[%clk 0:00:35.6]} 25. Rd1 {[%clk 0:00:22.1]} 25... Bc6 {[%clk 0:00:11.9]}
26. Rd8+ {[%clk 0:00:20.6]} 26... Kg7 {[%clk 0:00:12.5]} 27. Bd4+ {[%clk
0:00:18.3]} 27... Kh6 {[%clk 0:00:12.2]} 28. f5 {[%clk 0:00:18.4]} 28... Rg4
{[%clk 0:00:11.2]} 29. Be3+ {[%clk 0:00:18.7]} 29... Kg7 {[%clk 0:00:10.1]} 30.
Rd6 {[%clk 0:00:14.8]} 30... Re4 {[%clk 0:00:08.4]} 31. Bh6+ {[%clk 0:00:14.4]}
31... Kg8 {[%clk 0:00:08.3]} 32. Kb2 {[%clk 0:00:12.9]} 32... Re8 {[%clk
0:00:07]} 33. f6 {[%clk 0:00:11.9]} 33... Re6 {[%clk 0:00:06.4]} 34. Rd8+ {[%clk
0:00:12.2]} 34... Re8 {[%clk 0:00:06.5]} 35. Rd4 {[%clk 0:00:12.1]} 35... Be4
{[%clk 0:00:04.2]} 36. h4 {[%clk 0:00:11.4]} 36... Bg6 {[%clk 0:00:02.5]} 37.
Rg4 {[%clk 0:00:11]} 37... Re5 {[%clk 0:00:01.8]} 38. Rd4 {[%clk 0:00:09.9]}
38... Re8 {[%clk 0:00:01.8]} 39. g4 {[%clk 0:00:09.8]} 39... Be4 {[%clk
0:00:01.8]} 40. h5 {[%clk 0:00:08.9]} 40... Bc6 {[%clk 0:00:02.2]} 41. Bf4
{[%clk 0:00:08.5]} 41... Re4 {[%clk 0:00:02.3]} 42. Rd8+ {[%clk 0:00:08.7]}
42... Re8 {[%clk 0:00:02.6]} 43. Rd3 {[%clk 0:00:08.8]} 43... Re4 {[%clk
0:00:02.6]} 44. Bc7 {[%clk 0:00:08.7]} 44... a4 {[%clk 0:00:01.8]} 45. h6 {[%clk
0:00:08.3]} 45... Re8 {[%clk 0:00:02.7]} 46. g5 {[%clk 0:00:08.4]} 46... Kf8
{[%clk 0:00:02.7]} 47. Bd6+ {[%clk 0:00:08.4]} 47... Kg8 {[%clk 0:00:03.2]} 48.
Be7 {[%clk 0:00:09.1]} 48... Ra8 {[%clk 0:00:03]} 49. Ka3 {[%clk 0:00:09.7]}
49... Re8 {[%clk 0:00:03.5]} 50. Rd4 {[%clk 0:00:10]} 50... Rc8 {[%clk
0:00:04.1]} 51. c4 {[%clk 0:00:10.4]} 51... Re8 {[%clk 0:00:04.1]} 52. c3 {[%clk
0:00:10.8]} 52... Rc8 {[%clk 0:00:04.5]} 53. Rd6 {[%clk 0:00:11]} 53... Ra8
{[%clk 0:00:04.7]} 54. Rd4 {[%clk 0:00:10.8]} 54... Re8 {[%clk 0:00:04.8]} 55.
Bd6 {[%clk 0:00:10.2]} 55... Ra8 {[%clk 0:00:05.6]} 56. Bf4 {[%clk 0:00:10.2]}
56... Kf8 {[%clk 0:00:05.8]} 57. Bd6+ {[%clk 0:00:09.8]} 57... Kg8 {[%clk
0:00:05.6]} 58. Bc5 {[%clk 0:00:09.9]} 58... Re8 {[%clk 0:00:05.6]} 59. Bb6
{[%clk 0:00:09.5]} 59... Re4 {[%clk 0:00:05.6]} 60. Rd8+ {[%clk 0:00:09.3]}
60... Re8 {[%clk 0:00:06.5]} 61. Rd6 {[%clk 0:00:09.3]} 61... Re6 {[%clk
0:00:06.2]} 62. Rd3 {[%clk 0:00:05.9]} 62... Re8 {[%clk 0:00:07.1]} 63. Kb4
{[%clk 0:00:06.3]} 63... Ra8 {[%clk 0:00:07.1]} 64. Rd2 {[%clk 0:00:05.1]} 64...
a3 {[%clk 0:00:07.2]} 65. Ra2 {[%clk 0:00:05.4]} 65... Be4 {[%clk 0:00:07.3]}
66. Rxa3 {[%clk 0:00:05.8]} 66... Rxa3 {[%clk 0:00:06.9]} 67. Kxa3 {[%clk
0:00:06.7]} 67... Bc6 {[%clk 0:00:07.3]} 68. Kb4 {[%clk 0:00:07.6]} 68... Bf3
{[%clk 0:00:07.4]} 69. Kc5 {[%clk 0:00:08.5]} 69... Bc6 {[%clk 0:00:07.9]} 70.
Kd6 {[%clk 0:00:09.2]} 70... Bf3 {[%clk 0:00:08.1]} 71. Ke7 {[%clk 0:00:09.3]}
71... Be2 {[%clk 0:00:08]} 72. g6 {[%clk 0:00:07]} 72... hxg6 {[%clk 0:00:07.2]}
73. h7+ {[%clk 0:00:07.9]} 73... Kxh7 {[%clk 0:00:07.6]} 74. Kxf7 {[%clk
0:00:08.6]} 74... Bxc4+ {[%clk 0:00:07.9]} 75. Ke7 {[%clk 0:00:09.1]} 75... Kg8
{[%clk 0:00:07.4]} 76. Be3 {[%clk 0:00:09.7]} 76... Bf7 {[%clk 0:00:07.4]} 77.
Bg5 {[%clk 0:00:10.3]} 77... Bc4 {[%clk 0:00:07.6]} 78. Kd6 {[%clk 0:00:10.8]}
78... Bf7 {[%clk 0:00:07.6]} 79. Kc7 {[%clk 0:00:11.3]} 79... Bd5 {[%clk
0:00:07.8]} 80. Kd6 {[%clk 0:00:11.6]} 80... Bc4 {[%clk 0:00:08]} 81. Ke7 {[%clk
0:00:12]} 81... b5 {[%clk 0:00:08.1]} 82. Ke8 {[%clk 0:00:08.9]} 82... Bb3
{[%clk 0:00:08.3]} 83. Ke7 {[%clk 0:00:09]} 83... Bc4 {[%clk 0:00:08.7]} 84. Ke8
{[%clk 0:00:09.5]} 84... Bb3 {[%clk 0:00:09.1]} 85. Ke7 {[%clk 0:00:09.9]} 85...
Bc4 {[%clk 0:00:09.6]} 1/2-1/2

[Event "Late-Titled-Tuesday-Blitz-March-26-2024"]
[Site "Chess.com"]
[Date "2024.03.26"]
[Round "7"]
[White "mightysmasher"]
[Black "Veleamater"]
[Result "1-0"]
[WhiteElo "2595"]
[BlackElo "2401"]
[TimeControl "180+1"]
[EndTime "15:19:50 PDT"]
[Termination "mightysmasher won by resignation"]

1. e4 {[%clk 0:03:00.9]} 1... d6 {[%clk 0:03:00.9]} 2. d4 {[%clk 0:03:00.5]}
2... g6 {[%clk 0:03:00.3]} 3. Nf3 {[%clk 0:02:59.6]} 3... Bg7 {[%clk 0:03:00.5]}
4. c4 {[%clk 0:03:00.1]} 4... Nf6 {[%clk 0:03:00.9]} 5. Nc3 {[%clk 0:03:00.5]}
5... O-O {[%clk 0:03:01.5]} 6. Bd3 {[%clk 0:03:00.6]} 6... Nc6 {[%clk
0:03:02.2]} 7. O-O {[%clk 0:03:00.1]} 7... e5 {[%clk 0:02:59.8]} 8. d5 {[%clk
0:03:00]} 8... Ne7 {[%clk 0:03:00.1]} 9. Re1 {[%clk 0:02:59.5]} 9... h6 {[%clk
0:03:00.7]} 10. Bd2 {[%clk 0:02:58.7]} 10... Ne8 {[%clk 0:03:00.9]} 11. Qc1
{[%clk 0:02:58.4]} 11... Kh7 {[%clk 0:03:01.2]} 12. h3 {[%clk 0:02:56.3]} 12...
f5 {[%clk 0:03:01.4]} 13. Nh2 {[%clk 0:02:55.7]} 13... f4 {[%clk 0:03:01.3]} 14.
f3 {[%clk 0:02:55]} 14... h5 {[%clk 0:03:00.8]} 15. b4 {[%clk 0:02:50.7]} 15...
Rf7 {[%clk 0:02:59.9]} 16. c5 {[%clk 0:02:50.1]} 16... Bf8 {[%clk 0:02:59.6]}
17. a4 {[%clk 0:02:48.3]} 17... Rg7 {[%clk 0:02:59]} 18. Rf1 {[%clk 0:02:46.5]}
18... g5 {[%clk 0:02:59.2]} 19. Qe1 {[%clk 0:02:43.2]} 19... Ng6 {[%clk
0:02:53.3]} 20. Kh1 {[%clk 0:02:42]} 20... Nh8 {[%clk 0:02:53.2]} 21. Be2 {[%clk
0:02:39.4]} 21... Nf7 {[%clk 0:02:53.2]} 22. Rc1 {[%clk 0:02:34.6]} 22... Nh6
{[%clk 0:02:52.3]} 23. cxd6 {[%clk 0:02:33.4]} 23... cxd6 {[%clk 0:02:52]} 24.
Nb5 {[%clk 0:02:28.9]} 24... a6 {[%clk 0:02:46.5]} 25. Na3 {[%clk 0:02:28.4]}
25... Nf6 {[%clk 0:02:37.6]} 26. g4 {[%clk 0:02:17.6]} 26... fxg3 {[%clk
0:02:37]} 27. Qxg3 {[%clk 0:02:16.9]} 27... h4 {[%clk 0:02:32.2]} 28. Qg2 {[%clk
0:02:15.4]} 28... Nh5 {[%clk 0:02:32.2]} 29. Kg1 {[%clk 0:02:07.2]} 29... Nf4
{[%clk 0:02:32.3]} 30. Bxf4 {[%clk 0:02:05.8]} 30... gxf4 {[%clk 0:02:31.8]} 31.
Ng4 {[%clk 0:02:06.2]} 31... Qb6+ {[%clk 0:02:06.3]} 32. Kh1 {[%clk 0:01:56.6]}
32... Be7 {[%clk 0:02:05.5]} 33. b5 {[%clk 0:01:48.2]} 33... Bxg4 {[%clk
0:02:02.1]} 34. hxg4 {[%clk 0:01:46.7]} 34... Nf7 {[%clk 0:02:02.2]} 35. Nc4
{[%clk 0:01:45.1]} 35... Qd8 {[%clk 0:01:59.3]} 36. b6 {[%clk 0:01:42.8]} 36...
Ng5 {[%clk 0:01:57.8]} 37. a5 {[%clk 0:01:39]} 37... Kg6 {[%clk 0:01:57]} 38.
Nd2 {[%clk 0:01:29.4]} 38... Rc8 {[%clk 0:01:55.9]} 39. Nb3 {[%clk 0:01:28.5]}
39... Rb8 {[%clk 0:01:48.9]} 40. Rc7 {[%clk 0:01:22.7]} 40... Qe8 {[%clk
0:01:47.9]} 41. Rfc1 {[%clk 0:01:14.5]} 41... Bd8 {[%clk 0:01:47.5]} 42. Rxg7+
{[%clk 0:01:12.3]} 42... Kxg7 {[%clk 0:01:47]} 43. Bd1 {[%clk 0:01:11.9]} 43...
Qd7 {[%clk 0:01:40.2]} 44. Qf2 {[%clk 0:01:05.6]} 44... Nf7 {[%clk 0:01:34.1]}
45. Qc2 {[%clk 0:01:03.4]} 45... Qb5 {[%clk 0:01:24.3]} 46. Be2 {[%clk
0:01:02.1]} 46... Qb4 {[%clk 0:01:20.9]} 47. Qc3 {[%clk 0:00:59.7]} 47... Qxc3
{[%clk 0:01:15.3]} 48. Rxc3 {[%clk 0:00:58.9]} 48... Kf8 {[%clk 0:01:13.1]} 49.
Nd2 {[%clk 0:00:54.9]} 49... Ke7 {[%clk 0:01:13.3]} 50. Nb1 {[%clk 0:00:54.3]}
50... Kd7 {[%clk 0:01:11.8]} 51. Bd1 {[%clk 0:00:54.4]} 51... Ke7 {[%clk
0:01:08]} 52. Nd2 {[%clk 0:00:52.5]} 52... Ng5 {[%clk 0:01:07.3]} 53. Kh2 {[%clk
0:00:51.8]} 53... Kd7 {[%clk 0:01:05.8]} 54. Kg2 {[%clk 0:00:43.8]} 54... Ke7
{[%clk 0:01:04]} 55. Kf2 {[%clk 0:00:42.2]} 55... Kd7 {[%clk 0:01:03.3]} 56. Nc4
{[%clk 0:00:41.4]} 56... Ke7 {[%clk 0:01:01.3]} 57. Nb2 {[%clk 0:00:41.1]} 57...
Kd7 {[%clk 0:00:59.5]} 58. Nd3 {[%clk 0:00:41.2]} 58... Ke7 {[%clk 0:00:59.2]}
59. Nb4 {[%clk 0:00:40.8]} 59... Kd7 {[%clk 0:00:57]} 60. Ba4+ {[%clk
0:00:40.5]} 60... Ke7 {[%clk 0:00:56.2]} 61. Nc6+ {[%clk 0:00:29.3]} 61... bxc6
{[%clk 0:00:55.9]} 62. dxc6 {[%clk 0:00:30.2]} 62... Ne6 {[%clk 0:00:50.9]} 63.
c7 {[%clk 0:00:29.8]} 63... Bxc7 {[%clk 0:00:50.1]} 64. b7 {[%clk 0:00:29.5]}
64... Nc5 {[%clk 0:00:48.7]} 65. Bc2 {[%clk 0:00:28.7]} 65... Rxb7 {[%clk
0:00:48]} 66. Kg2 {[%clk 0:00:28]} 66... Bxa5 {[%clk 0:00:41.2]} 67. Rc4 {[%clk
0:00:27.8]} 67... Rb4 {[%clk 0:00:32.1]} 68. Rxb4 {[%clk 0:00:23.7]} 68... Bxb4
{[%clk 0:00:31.9]} 69. Kh3 {[%clk 0:00:24.6]} 69... a5 {[%clk 0:00:32.2]} 70.
Kxh4 {[%clk 0:00:24.2]} 70... a4 {[%clk 0:00:32.7]} 71. Kh5 {[%clk 0:00:23]}
71... a3 {[%clk 0:00:32.8]} 72. Bb1 {[%clk 0:00:22.8]} 72... Nd3 {[%clk
0:00:29.3]} 73. g5 {[%clk 0:00:20]} 73... Kf7 {[%clk 0:00:28.8]} 74. Kh6 {[%clk
0:00:19.2]} 74... d5 {[%clk 0:00:09.4]} 75. g6+ {[%clk 0:00:18.3]} 75... Kf6
{[%clk 0:00:09.3]} 76. g7 {[%clk 0:00:17.1]} 76... Kf7 {[%clk 0:00:07.2]} 77.
Kh7 {[%clk 0:00:16.9]} 77... dxe4 {[%clk 0:00:05.3]} 78. g8=Q+ {[%clk
0:00:16.2]} 78... Kf6 {[%clk 0:00:05.7]} 79. Qg6+ {[%clk 0:00:16.2]} 79... Ke7
{[%clk 0:00:05.5]} 80. Qxe4 {[%clk 0:00:16.4]} 1-0